bitfinex/quotes_ETHUSD_20250801
["timestamp","ask_amount","ask_price","bid_price","bid_amount"]
[1754069695352,4.86487962,3589.2,3588.5,2.78662571]
[1754069695649,5.1648,3589.1,3588.5,2.78662581]
[1754069695869,5.1648,3589.1,3588.5,2.78666919]
[1754069696034,0.4688,3589.0,3587.8,0.4567]
[1754069696220,0.4688,3589.0,3588.2,3.0]
[1754069696221,0.55,3588.9,3588.2,3.0]
[1754069696549,0.9088,3588.8,3588.4,3.0]
[1754069696749,0.55,3588.9,3587.1,2.78776345]
[1754069696750,4.696,3588.7,3587.1,2.78776345]
[1754069696985,1.0188,3588.6,3587.3,0.9459]
[1754069697138,1.0188,3588.6,3587.9,2.78714493]
[1754069697318,1.0188,3588.6,3587.3,0.9459]
[1754069697319,0.4688,3588.5,3587.8,3.0]
[1754069697631,0.9088,3588.5,3587.8,2.78714722]
[1754069697826,0.9088,3588.5,3587.1,3.06649634]
[1754069697827,0.55,3588.3,3586.8,0.9459]
[1754069698013,0.55,3588.3,3586.4,0.4567]
[1754069698014,5.6048,3588.2,3586.4,0.4567]
[1754069698219,0.99,3588.1,3586.2,0.4567]
[1754069698527,0.99,3588.1,3586.6,2.78813661]
[1754069698528,3.33716489,3587.9,3586.6,2.78813661]
[1754069698738,0.55,3587.7,3586.6,2.78813661]
[1754069698939,0.55,3587.5,3586.5,2.78822908]
[1754069699153,0.55,3587.3,3585.9,0.4567]
[1754069699356,0.55,3587.1,3586.4,2.78829843]
[1754069699529,0.9088,3587.2,3586.1,2.78849929]
[1754069699737,0.4688,3587.2,3586.3,3.0]
[1754069699933,6.693,3587.4,3586.4,0.51708311]
[1754069700244,4.696,3587.3,3585.8,0.4892]
[1754069700453,0.55,3587.2,3585.8,0.4892]
[1754069700760,0.4688,3587.1,3586.3,2.78838914]
[1754069700931,6.693,3587.4,3586.4,0.4892]
[1754069701133,4.698,3587.3,3587.1,2.78776252]
[1754069701547,4.698,3587.3,3587.2,2.78768956]
[1754069702074,6.693,3587.4,3587.3,2.78761185]
[1754069702230,11.39,3587.4,3587.3,2.78761185]
[1754069703156,6.693,3587.4,3587.3,2.92681185]
[1754069703332,11.39,3587.4,3587.3,0.1392]
[1754069703529,11.39,3587.4,3587.3,2.78761185]
[1754069703530,12.529,3587.4,3587.3,2.78761185]
[1754069703980,12.529,3587.4,3587.2,0.1392]
[1754069704147,12.9978,3587.4,3587.0,0.1392]
[1754069704682,12.9978,3587.4,3587.1,3.0]
[1754069704886,0.4688,3587.3,3587.0,3.0]
[1754069705038,0.1392,3587.1,3586.5,2.78821666]
[1754069705238,4.697,3587.0,3586.4,2.927438]
[1754069705438,0.608,3586.9,3586.4,3.1392]
[1754069705744,0.5305,3586.8,3586.7,2.78807817]
[1754069706580,4.697,3586.8,3586.7,3.38397817]
[1754069706879,4.697,3586.8,3586.7,3.87317817]
[1754069707258,4.697,3586.8,3586.7,2.92727817]
[1754069707699,4.697,3586.8,3586.7,0.1392]
[1754069707998,0.55,3586.7,3586.1,2.92772282]
[1754069708166,0.1392,3586.4,3586.0,3.0]
[1754069708376,4.697,3586.3,3586.2,5.7884669]
[1754069709052,4.697,3586.3,3586.2,3.0]
[1754069709365,4.697,3586.3,3586.2,5.7884669]
[1754069709887,4.697,3586.3,3586.2,3.0]
[1754069710245,0.55,3586.2,3585.0,0.4567]
[1754069710464,0.1392,3585.9,3585.8,2.78873071]
[1754069710664,4.697,3585.9,3585.8,2.78873071]
[1754069711199,0.95242,3586.3,3585.8,2.78873071]
[1754069711200,0.48362,3586.3,3586.2,2.7884669]
[1754069711486,4.697,3586.3,3586.2,2.7884669]
[1754069711656,4.697,3586.3,3585.7,0.5959]
[1754069711863,1.4588,3586.2,3585.2,2.78919437]
[1754069712106,0.55,3585.6,3584.8,2.78953317]
[1754069712250,0.55,3585.4,3584.7,0.1392]
[1754069712451,0.1392,3585.5,3585.0,2.92855966]
[1754069712654,0.4688,3586.0,3585.1,3.0]
[1754069712990,0.4688,3586.0,3585.0,0.9459]
[1754069712991,4.697,3585.9,3585.0,0.9459]
[1754069713196,4.697,3585.9,3584.9,0.18119375]
[1754069713197,0.55,3585.7,3584.9,0.18119375]
[1754069713362,0.1392,3585.4,3585.3,2.78912711]
[1754069713564,6.699,3585.7,3585.6,2.78893351]
[1754069713763,0.4688,3586.5,3586.4,2.78831139]
[1754069713960,4.697,3586.5,3586.4,2.78831139]
[1754069714377,0.1392,3586.7,3586.6,2.78815591]
[1754069714690,6.699,3587.0,3586.9,2.78792271]
[1754069714857,6.699,3587.0,3586.9,2.92712271]
[1754069715183,11.396,3587.0,3586.9,2.92712271]
[1754069715587,6.699,3587.0,3586.9,6.85792271]
[1754069715886,4.697,3587.2,3587.1,5.78776727]
[1754069716073,4.697,3587.5,3587.4,2.78753414]
[1754069716274,4.697,3587.5,3587.4,6.71833414]
[1754069716476,6.699,3588.9,3588.5,2.78664562]
[1754069716687,4.697,3588.8,3588.7,2.78652436]
[1754069716988,4.697,3588.8,3588.7,2.92572436]
[1754069717464,6.699,3588.9,3588.8,2.78644672]
[1754069717791,6.699,3588.9,3588.8,6.71724672]
[1754069717792,11.396,3588.9,3588.8,6.71724672]
[1754069718086,0.76268278,3589.2,3589.1,2.78621381]
[1754069718286,0.76268278,3589.2,3589.1,5.78621381]
[1754069718591,6.699,3590.3,3589.1,5.78621381]
[1754069718592,4.696,3589.3,3589.2,3.0]
[1754069718789,6.699,3590.3,3589.3,2.78605856]
[1754069718790,4.696,3589.4,3589.3,2.78605856]
[1754069718969,4.696,3589.4,3589.3,5.78605856]
[1754069719163,4.696,3589.4,3589.3,7.68145208]
[1754069719366,4.696,3589.4,3589.3,5.92525856]
[1754069719988,4.696,3589.4,3589.3,3.1392]
[1754069720301,4.696,3589.4,3589.3,3.0]
[1754069720464,5.6705,3589.4,3588.6,2.78653312]
[1754069720653,6.25147,3589.4,3589.0,2.78628037]
[1754069720860,0.503,3589.3,3589.0,0.1392]
[1754069721059,0.503,3589.2,3588.0,0.21385546]
[1754069721324,0.503,3589.2,3584.9,1.5792392]
[1754069721325,4.695,3589.1,3589.0,2.78629144]
[1754069721464,7.1705,3590.3,3589.0,2.78629144]
[1754069721465,0.1392,3590.2,3589.7,2.78574508]
[1754069721667,0.1392,3590.2,3589.7,0.1392]
[1754069721862,6.699,3590.3,3589.5,3.0]
[1754069722096,4.695,3590.1,3590.0,2.78551532]
[1754069722463,4.695,3590.1,3590.0,2.92471532]
[1754069722982,4.695,3590.1,3590.0,3.39071532]
[1754069723186,6.699,3590.3,3590.2,2.78536014]
[1754069723489,11.393,3590.3,3590.2,2.78536014]
[1754069723691,11.393,3590.3,3590.2,2.92456014]
[1754069723896,11.393,3590.3,3590.2,0.1392]
[1754069725113,11.393,3590.3,3590.2,3.1392]
[1754069725322,11.393,3590.3,3590.2,0.1392]
[1754069725530,11.393,3590.3,3589.4,0.4648]
[1754069725531,12.5323,3590.3,3588.7,0.466]
[1754069725815,13.646,3590.3,3589.8,0.1392]
[1754069726020,12.6715,3590.3,3589.8,0.1392]
[1754069726224,0.9745,3590.2,3589.8,0.1392]
[1754069726529,6.699,3590.3,3590.1,0.1392]
[1754069726828,5.196,3590.2,3590.1,0.1392]
[1754069727119,4.693,3590.2,3590.1,0.1392]
[1754069727676,4.693,3590.2,3589.0,3.20786088]
[1754069727873,4.693,3590.2,3590.1,0.1392]
[1754069728622,5.196,3590.2,3589.1,4.25158609]
[1754069728775,4.693,3590.2,3590.0,0.1392]
[1754069728980,4.693,3590.2,3590.1,2.92463773]
[1754069729180,6.699,3590.3,3590.2,5.78536014]
[1754069729530,0.503,3591.2,3590.6,3.0]
[1754069729695,0.503,3591.2,3591.0,0.1392]
[1754069729896,4.691,3591.1,3591.0,2.92393962]
[1754069730224,4.691,3591.1,3591.0,0.1392]
[1754069730422,5.194,3591.1,3590.7,2.78491429]
[1754069730719,5.3332,3591.1,3590.7,2.78491429]
[1754069731224,6.695,3591.7,3590.8,0.466]
[1754069731429,4.69,3591.6,3591.5,2.78435194]
[1754069731589,5.6645,3591.6,3590.3,0.466]
[1754069731785,0.1392,3591.3,3590.7,3.0]
[1754069732017,5.193,3591.2,3590.8,0.1392]
[1754069732226,0.503,3591.1,3590.8,0.1392]
[1754069732597,0.503,3591.1,3590.7,2.78491621]
[1754069732598,0.6107,3591.0,3590.5,0.1392]
[1754069732754,0.55,3590.8,3589.3,0.466]
[1754069732903,0.1392,3590.5,3590.0,3.0]
[1754069733102,5.193,3590.4,3589.8,3.1392]
[1754069733348,0.503,3590.3,3589.8,3.1392]
[1754069733549,0.503,3590.2,3589.8,3.1392]
[1754069733755,4.69,3590.1,3589.8,3.1392]
[1754069734062,1.68015,3590.0,3589.5,0.1392]
[1754069734238,1.68015,3590.0,3589.4,0.1392]
[1754069734442,1.68015,3590.0,3588.4,0.4648]
[1754069734443,1.5245,3589.9,3588.4,0.4648]
[1754069734607,1.5245,3589.9,3586.5,2.88818395]
[1754069734608,0.55,3589.7,3588.8,0.1392]
[1754069734962,0.1392,3589.3,3588.2,2.78686427]
[1754069735121,0.1392,3589.3,3588.0,0.9308]
[1754069735122,5.192,3589.2,3588.7,0.1392]
[1754069735327,0.9745,3589.1,3588.7,0.1392]
[1754069735657,0.9745,3589.0,3588.7,0.1392]
[1754069735864,1.55477,3589.0,3588.7,0.1392]
[1754069736154,1.55477,3589.0,3588.2,2.78685651]
[1754069736155,0.1392,3588.8,3588.2,2.78685651]
[1754069736375,5.192,3588.7,3588.1,3.0]
[1754069736583,5.192,3588.7,3588.0,2.92619414]
[1754069736584,1.06945,3590.0,3589.4,2.78591065]
[1754069736861,4.689,3589.9,3589.0,3.0]
[1754069737087,7.197,3590.4,3589.1,2.78621381]
[1754069737221,7.197,3590.4,3589.8,0.1392]
[1754069737222,4.689,3590.3,3589.8,0.1392]
[1754069737423,4.689,3590.3,3590.2,2.92456014]
[1754069737668,6.694,3590.4,3590.3,2.78528256]
[1754069738135,11.383,3590.4,3590.3,2.78528256]
[1754069738824,11.383,3590.4,3590.2,0.1392]
[1754069739343,6.694,3590.4,3590.3,2.78528256]
[1754069739544,11.383,3590.4,3590.3,3.25128256]
[1754069739721,6.694,3590.4,3590.3,7.33366248]
[1754069739920,11.383,3590.4,3590.3,7.00806248]
[1754069740166,11.383,3590.4,3590.3,5.92448256]
[1754069740335,11.383,3590.4,3590.3,6.85528256]
[1754069740533,6.694,3590.4,3590.3,6.85528256]
[1754069740739,11.382,3590.4,3590.3,6.85528256]
[1754069741548,11.382,3590.4,3590.3,5.92448256]
[1754069742258,11.382,3590.4,3590.3,6.39048256]
[1754069742623,11.382,3590.4,3590.3,7.30807348]
[1754069742940,11.382,3590.4,3590.3,7.77287348]
[1754069744186,0.1392,3591.4,3591.0,2.78468414]
[1754069744357,4.687,3591.3,3591.0,2.78466796]
[1754069744692,4.687,3591.3,3591.2,2.92378453]
[1754069745098,5.19,3591.3,3591.2,0.1392]
[1754069745252,5.19,3591.3,3591.1,0.1392]
[1754069745457,0.9407,3591.2,3591.1,0.1392]
[1754069745697,0.4783,3591.2,3591.1,0.1392]
[1754069746054,0.9407,3591.2,3590.9,0.1392]
[1754069746254,5.1643,3591.1,3590.9,0.1392]
[1754069746497,5.1643,3591.1,3590.9,2.92400157]
[1754069746704,1.4907,3591.0,3589.1,0.8367]
[1754069746999,0.55,3590.5,3589.4,2.78597815]
[1754069747200,0.55,3590.3,3589.3,3.0]
[1754069747365,1.5193,3590.2,3589.5,2.78582996]
[1754069747572,4.686,3590.1,3589.5,2.78582996]
[1754069747799,0.4783,3590.0,3589.3,3.0]
[1754069747978,0.4783,3590.0,3589.1,3.62290909]
[1754069747979,0.4783,3590.0,3589.1,0.8367]
[1754069748166,0.4783,3590.0,3589.6,2.77815581]
[1754069748360,0.62053,3590.0,3589.6,2.77815581]
[1754069748562,0.4783,3589.9,3589.5,2.78590176]
[1754069748767,5.1633,3589.8,3589.6,3.0]
[1754069749084,5.1633,3589.8,3589.3,3.0]
[1754069749085,0.4783,3589.7,3589.3,3.0]
[1754069749267,0.9407,3589.6,3589.1,0.8367]
[1754069749465,5.6257,3589.5,3589.1,0.8367]
[1754069749810,5.1633,3589.4,3588.4,2.78671256]
[1754069749974,5.1633,3589.4,3588.5,3.0]
[1754069750173,0.4783,3591.3,3589.9,2.78554858]
[1754069750386,0.4783,3591.3,3589.5,2.78590332]
[1754069750387,0.4783,3591.7,3590.3,3.0]
[1754069750686,4.685,3591.6,3590.5,3.0]
[1754069750866,4.685,3591.6,3590.4,0.9532]
[1754069751068,0.59175317,3591.6,3591.5,2.78435194]
[1754069751385,4.685,3591.6,3591.5,2.78435194]
[1754069751811,9.103,3592.3,3591.5,2.78435194]
[1754069751812,6.693,3592.3,3591.8,2.78411938]
[1754069752013,0.9407,3593.2,3591.8,6.76516057]
[1754069752174,0.9407,3593.2,3592.6,2.78349455]
[1754069752375,4.684,3593.1,3592.7,2.78340029]
[1754069752624,1.04077,3593.0,3591.8,0.9532]
[1754069752870,1.02487,3593.0,3591.4,0.4839]
[1754069753076,0.4783,3592.9,3591.4,0.4839]
[1754069753375,0.4624,3592.8,3592.0,3.0]
[1754069753595,4.834317,3592.7,3592.2,2.78373478]
[1754069753799,5.312617,3592.7,3591.6,3.25357339]
[1754069754004,5.312617,3592.7,3591.7,3.0]
[1754069754306,5.312617,3592.7,3591.9,2.78400422]
[1754069754512,0.5312617,3592.6,3592.2,2.78378988]
[1754069754686,1.0095617,3592.6,3592.2,2.78378988]
[1754069754871,1.0095617,3592.6,3592.2,2.78380936]
[1754069755077,1.0095617,3592.6,3592.1,2.78388686]
[1754069755078,0.5312617,3592.6,3592.0,2.78389928]
[1754069755277,0.4783,3592.5,3592.1,2.78387039]
[1754069755473,1.06268787,3592.4,3591.9,3.0]
[1754069755673,5.1613,3592.3,3591.9,2.78402307]
[1754069755992,0.57456879,3592.2,3592.1,2.78388686]
[1754069756315,0.57456879,3592.2,3592.0,2.78393912]
[1754069756534,0.150317,3592.7,3591.8,2.78411938]
[1754069756827,4.683,3592.6,3592.5,2.78357689]
[1754069757179,4.683,3592.6,3592.5,3.39207689]
[1754069757709,4.683,3592.6,3592.5,2.92277689]
[1754069758213,0.4783,3593.3,3592.5,2.92277689]
[1754069758214,0.4783,3593.3,3592.5,0.1392]
[1754069758418,4.682,3593.2,3592.6,2.78349753]
[1754069758623,0.51603,3593.1,3593.0,0.1392]
[1754069758826,0.51603,3593.1,3593.0,2.92238953]
[1754069759026,0.51603,3593.1,3593.0,0.1392]
[1754069759337,0.4783,3593.9,3593.0,0.1392]
[1754069759542,0.4783,3593.9,3592.4,5.7836437]
[1754069759543,0.1392,3594.1,3593.6,0.1392]
[1754069759719,11.375,3593.7,3593.6,0.1392]
[1754069760214,11.8533,3593.7,3593.6,0.1392]
[1754069760412,11.8533,3593.7,3592.9,0.1392]
[1754069760413,12.4549,3593.7,3592.9,0.1392]
[1754069760618,0.1392,3593.4,3592.6,3.0]
[1754069760792,5.1593,3593.3,3592.4,2.78360198]
[1754069760994,0.4783,3593.2,3592.3,2.78371169]
[1754069761228,0.4783,3593.2,3592.5,3.0]
[1754069761429,0.1392,3593.1,3592.6,0.1392]
[1754069761634,1.05439,3593.0,3592.7,3.0]
[1754069761804,4.68,3592.9,3592.8,0.1392]
[1754069761995,5.6207,3592.9,3592.2,3.0]
[1754069762195,1.237179,3592.8,3592.2,2.78375962]
[1754069762528,1.237179,3592.8,3592.2,0.1392]
[1754069762732,1.237179,3592.8,3592.2,3.1392]
[1754069763144,1.237179,3592.8,3592.2,0.1392]
[1754069763344,4.68,3592.7,3592.6,0.1392]
[1754069763497,4.68,3592.7,3592.2,0.9532]
[1754069763698,4.68,3592.7,3592.6,2.92269941]
[1754069763892,4.68,3592.7,3592.6,5.92269941]
[1754069764100,4.68,3592.7,3592.6,6.39199941]
[1754069764724,4.68,3592.7,3592.6,3.1392]
[1754069765036,5.6263,3592.7,3592.4,0.1392]
[1754069765241,2.8883,3592.6,3591.5,0.4693]
[1754069765437,3.3507,3592.6,3592.2,0.1392]
[1754069765623,2.8883,3592.6,3592.2,0.1392]
[1754069765809,2.41,3592.6,3592.5,2.78357689]
[1754069766004,2.5492,3593.2,3592.6,2.78347001]
[1754069766200,5.72999,3593.1,3592.6,2.78345271]
[1754069766399,4.679,3593.0,3592.8,0.1392]
[1754069766933,4.679,3592.9,3592.8,3.391795]
[1754069767140,4.679,3592.9,3592.8,0.1392]
[1754069767338,4.679,3592.9,3592.8,2.92254446]
[1754069767546,4.679,3592.9,3592.8,3.39184446]
[1754069767837,6.693,3593.7,3592.8,4.0924]
[1754069767998,6.693,3593.7,3593.6,2.78272484]
[1754069768198,11.371,3593.7,3593.6,2.92192484]
[1754069768401,4.678,3594.1,3593.6,6.87512484]
[1754069768596,4.678,3594.1,3594.0,2.78241513]
[1754069768825,4.678,3594.1,3594.0,2.92161513]
[1754069769421,4.678,3594.1,3594.0,0.1392]
[1754069770029,4.678,3594.1,3594.0,2.92161513]
[1754069771039,4.678,3594.1,3594.0,0.1392]
[1754069771201,5.70070637,3594.1,3594.0,0.1392]
[1754069771404,5.70070637,3594.1,3593.4,3.0]
[1754069771598,4.678,3594.1,3594.0,2.92161513]
[1754069771802,4.678,3594.1,3594.0,0.1392]
[1754069772003,0.4783,3594.5,3594.0,0.1392]
[1754069772004,0.4783,3594.7,3594.1,2.78230795]
[1754069772205,5.1553,3594.3,3594.2,0.1392]
[1754069772405,4.677,3594.3,3594.2,2.9214603]
[1754069772716,0.76606371,3594.4,3594.3,2.7821829]
[1754069772918,5.44206371,3594.4,3594.2,0.1392]
[1754069773243,0.76606371,3594.4,3594.3,2.7821829]
[1754069773446,5.44206371,3594.4,3594.3,6.8745829]
[1754069773742,5.1543,3594.4,3594.3,0.1392]
[1754069774045,6.13213,3594.4,3594.0,3.0]
[1754069774242,5.65383,3594.4,3594.1,0.1392]
[1754069774544,0.4783,3594.3,3594.1,0.1392]
[1754069774751,0.4783,3594.2,3592.8,0.4839]
[1754069774905,0.6016,3594.1,3593.6,0.1392]
[1754069775236,5.6157,3594.0,3592.5,2.78357689]
[1754069775439,5.37577,3593.9,3593.4,0.1392]
[1754069775846,0.4843,3593.8,3593.4,0.1392]
[1754069776046,0.4843,3593.7,3593.4,0.1392]
[1754069776447,0.4843,3593.6,3593.4,0.1392]
[1754069776648,0.9385,3593.6,3593.4,0.1392]
[1754069776853,0.9385,3593.5,3592.6,2.78349727]
[1754069777036,5.1583,3593.4,3592.7,2.7834104]
[1754069777259,5.1583,3593.4,3593.0,0.1392]
[1754069777535,0.55,3593.2,3592.1,2.78383229]
[1754069777734,0.1392,3592.9,3592.4,0.1392]
[1754069777935,4.674,3592.8,3592.4,0.1392]
[1754069778252,4.674,3592.8,3591.5,0.4614]
[1754069778253,0.9385,3592.7,3591.2,0.4401]
[1754069778410,0.6235,3592.6,3592.1,0.1392]
[1754069778610,1.19867,3592.6,3592.1,0.1392]
[1754069778836,0.9385,3592.5,3592.1,0.1392]
[1754069779240,0.4843,3592.5,3592.1,0.1392]
[1754069779548,0.9385,3592.9,3592.0,2.78395592]
[1754069779852,3.33344105,3592.7,3591.1,2.78464034]
[1754069780054,2.92287487,3592.4,3591.9,0.1392]
[1754069780351,0.9385,3592.6,3590.7,0.4614]
[1754069780352,0.1392,3592.2,3590.7,0.4614]
[1754069780555,0.1392,3591.9,3591.4,0.1392]
[1754069780711,5.1573,3591.8,3591.4,0.1392]
[1754069780911,0.1392,3591.6,3591.1,0.1392]
[1754069781212,0.9385,3591.5,3591.0,0.1392]
[1754069781412,0.9385,3591.4,3591.0,0.1392]
[1754069781613,5.6115,3591.3,3590.1,0.4401]
[1754069781816,3.40811745,3591.2,3590.7,0.1392]
[1754069782019,0.9385,3591.2,3590.4,0.1392]
[1754069782229,0.1392,3590.9,3590.4,0.1392]
[1754069782531,5.1583,3590.8,3590.4,0.1392]
[1754069782854,0.4843,3590.7,3590.4,0.1392]
[1754069783237,0.4843,3590.6,3590.4,0.1392]
[1754069783442,4.674,3590.8,3590.4,2.92438876]
[1754069783615,0.55,3591.8,3590.8,3.0]
[1754069783820,3.33409364,3591.9,3590.8,3.0]
[1754069783821,0.6235,3591.3,3590.8,3.0]
[1754069784034,5.6115,3591.2,3590.8,3.0]
[1754069784232,4.673,3591.2,3590.8,3.0]
[1754069784430,4.673,3591.2,3591.0,2.78472165]
[1754069784629,4.673,3591.2,3590.9,2.78480446]
[1754069784849,4.673,3591.2,3590.8,3.0]
[1754069784850,4.673,3591.2,3590.8,5.78486992]
[1754069785186,0.1392,3591.3,3590.9,0.4401]
[1754069785359,4.673,3591.1,3590.8,5.78482672]
[1754069785744,4.673,3591.1,3591.0,0.1392]
[1754069785948,5.1573,3591.1,3590.8,3.0]
[1754069786145,0.4843,3591.0,3590.8,3.1392]
[1754069786347,0.4843,3590.9,3590.8,3.0]
[1754069787134,0.4843,3590.9,3590.6,0.1392]
[1754069787135,0.9385,3590.9,3590.6,0.1392]
[1754069787337,0.9385,3590.9,3587.8,2.78718539]
[1754069787338,0.1,3589.5,3587.6,7.14051056]
[1754069787687,0.9385,3590.8,3588.0,2.787068]
[1754069787688,0.1,3589.0,3588.0,2.787068]
[1754069787825,0.1,3589.0,3588.5,2.78662192]
[1754069787826,4.672,3588.9,3588.5,2.78662192]
[1754069788020,4.672,3588.9,3587.1,2.78774832]
[1754069788237,4.672,3588.9,3588.8,0.1392]
[1754069788566,5.7034,3588.9,3588.8,0.1392]
[1754069788766,0.1,3588.1,3587.8,2.78716507]
[1754069788971,4.673,3588.0,3587.8,3.0]
[1754069789175,0.1,3587.8,3587.5,2.78739222]
[1754069789341,0.1,3587.8,3586.5,0.4401]
[1754069789542,0.1,3587.8,3587.7,2.78730105]
[1754069789740,0.1,3587.8,3587.7,3.0]
[1754069789975,0.1,3587.8,3587.7,5.78730105]
[1754069790173,5.1272,3588.0,3587.7,5.78730105]
[1754069790174,5.2272,3588.0,3587.7,5.78730105]
[1754069790378,5.2272,3588.0,3587.7,2.78730105]
[1754069790379,0.1,3587.8,3587.7,2.78730105]
[1754069790537,5.2272,3588.0,3587.6,5.78731155]
[1754069790738,5.2272,3588.0,3587.7,2.78727889]
[1754069790937,0.1,3587.7,3586.8,3.0]
[1754069791171,0.1,3587.8,3587.7,3.0]
[1754069791362,0.1,3587.7,3587.5,5.78745644]
[1754069791763,5.1272,3588.0,3586.9,0.57880782]
[1754069791764,0.1,3587.5,3586.9,0.57880782]
[1754069791960,4.673,3587.4,3587.3,2.78761185]
[1754069792149,4.673,3587.4,3587.3,5.78761185]
[1754069792352,0.4542,3588.0,3587.7,2.78730105]
[1754069792353,0.1,3588.0,3587.7,2.78730105]
[1754069792674,6.69,3588.3,3587.8,5.78722336]
[1754069792675,4.673,3587.9,3587.8,5.78722336]
[1754069792876,5.2272,3587.9,3587.7,7.0]
[1754069793174,4.773,3587.9,3587.7,7.0]
[1754069793377,0.1,3587.9,3587.8,2.78722336]
[1754069793537,6.69,3588.3,3587.8,2.78722336]
[1754069793538,6.69,3588.3,3588.2,2.78691265]
[1754069793983,11.463,3588.3,3588.2,2.78691265]
[1754069794184,6.79,3588.3,3588.2,2.78691265]
[1754069794494,11.363,3588.3,3588.2,6.78440461]
[1754069795563,11.363,3588.3,3588.2,5.78691265]
[1754069795750,11.463,3588.3,3588.2,5.78691265]
[1754069795956,11.363,3588.3,3588.2,5.78691265]
[1754069796260,6.69,3588.3,3588.2,5.78691265]
[1754069796574,11.363,3588.3,3588.2,6.22701265]
[1754069796885,11.363,3588.3,3588.2,7.12841461]
[1754069796886,6.69,3588.3,3588.2,7.12841461]
[1754069797102,0.4542,3589.5,3589.4,2.78598094]
[1754069797311,0.4542,3589.5,3588.2,7.12841461]
[1754069797312,4.673,3589.5,3588.9,2.78631803]
[1754069797596,0.1,3588.8,3588.3,2.78683499]
[1754069797803,0.1,3588.8,3588.7,5.78652436]
[1754069798100,4.773,3588.8,3588.7,5.78652436]
[1754069798284,0.1,3588.4,3588.3,2.7868145]
[1754069798451,4.772,3588.4,3588.3,3.0]
[1754069798650,0.1,3588.2,3588.0,3.0]
[1754069798887,0.5542,3588.2,3588.0,3.1392]
[1754069799086,0.1,3588.0,3586.9,3.22802271]
[1754069799290,0.1,3588.0,3587.9,0.1392]
[1754069799487,4.772,3588.0,3587.9,0.1392]
[1754069799971,0.1,3587.5,3586.5,2.78816022]
[1754069800305,0.1,3587.5,3587.4,0.1392]
[1754069800471,0.1,3587.5,3586.9,5.7879151]
[1754069800472,5.2262,3587.5,3586.9,5.7879151]
[1754069800650,0.1,3586.9,3586.5,2.78816255]
[1754069800855,0.1,3586.9,3586.4,2.78826324]
[1754069801081,0.1,3586.7,3585.7,0.4401]
[1754069801296,4.672,3586.8,3584.9,7.42619375]
[1754069801297,0.1,3586.4,3585.5,2.78901129]
[1754069801478,4.672,3586.3,3586.2,0.1392]
[1754069801683,4.672,3586.3,3586.2,2.9276669]
[1754069801881,4.672,3586.3,3586.2,0.1392]
[1754069802094,0.1,3585.9,3585.4,2.78908265]
[1754069802390,0.1,3585.5,3585.4,2.78908066]
[1754069802590,0.1,3585.5,3585.4,0.1392]
[1754069802591,4.771,3585.5,3585.4,0.1392]
[1754069802790,0.1,3585.2,3584.9,0.18119375]
[1754069802955,0.1,3585.0,3584.9,2.97060158]
[1754069803153,4.772,3585.0,3584.9,3.18119375]
[1754069803353,5.2262,3585.0,3584.9,0.18119375]
[1754069803953,6.24704,3585.0,3584.9,0.18119375]
[1754069804655,5.76274,3585.0,3584.9,0.18119375]
[1754069805295,5.2262,3585.0,3584.9,0.18119375]
[1754069805679,0.1,3585.0,3584.9,0.18119375]
[1754069805881,4.671,3585.0,3584.9,3.10987183]
[1754069806062,0.1,3585.2,3585.1,2.78930206]
[1754069806260,4.672,3585.2,3585.1,2.78930206]
[1754069806591,0.1,3585.1,3585.0,2.78940027]
[1754069806895,0.1,3585.1,3585.0,2.92860027]
[1754069806896,4.772,3585.1,3585.0,2.92860027]
[1754069807093,0.1,3585.1,3585.0,2.92860027]
[1754069807293,4.772,3585.1,3585.0,2.92860027]
[1754069807496,4.772,3585.1,3585.0,0.1392]
[1754069807793,4.772,3585.1,3584.9,0.18119375]
[1754069807794,5.3884,3585.1,3584.9,0.18119375]
[1754069807981,0.4672,3585.0,3584.9,0.18119375]
[1754069808295,4.9112,3585.1,3584.9,0.18119375]
[1754069808497,0.4672,3585.0,3584.9,0.18119375]
[1754069808874,4.81754027,3585.0,3584.9,0.18119375]
[1754069809073,2.02814,3585.0,3584.9,0.18119375]
[1754069809289,4.81754027,3585.0,3584.9,0.18119375]
[1754069809798,2.02814,3585.0,3584.9,0.18119375]
[1754069810001,6.83934,3585.0,3584.9,0.18119375]
[1754069810497,9.62874027,3585.0,3584.9,0.18119375]
[1754069811059,12.62874027,3585.0,3584.9,0.18119375]
[1754069811877,7.95674027,3585.0,3584.9,0.18119375]
[1754069812108,12.62774027,3585.0,3584.9,0.18119375]
[1754069812579,13.09964027,3585.0,3584.9,0.18119375]
[1754069812815,7.31124,3585.0,3584.9,0.18119375]
[1754069813115,5.89904,3585.0,3584.9,0.18119375]
[1754069813408,5.2784,3585.0,3584.9,0.18119375]
[1754069813608,4.9112,3585.0,3584.9,0.18119375]
[1754069814011,0.2392,3585.0,3584.9,0.18119375]
[1754069814180,4.772,3585.0,3584.9,0.18119375]
[1754069814519,5.73032,3585.0,3584.9,0.18119375]
[1754069814807,5.16312,3585.0,3584.9,0.18119375]
[1754069815014,5.26312,3585.0,3584.9,0.18119375]
[1754069815242,0.1,3585.0,3584.9,2.97067183]
[1754069815411,4.772,3585.0,3584.9,2.97067183]
[1754069815816,0.1,3585.2,3585.1,2.78932247]
[1754069816001,4.672,3585.2,3585.1,0.4719]